fUSD/lending_fUSD_20240905
["ID","MTS","AMOUNT","RATE_DAILY","PERIOD"]
[337205616,1725499869863,-500.0,0.00014983,2]
[337205617,1725499869872,-151.0,0.00014983,2]
[337205618,1725499869882,-357.382535,0.00014983,2]
[337205619,1725499869891,-357.382535,0.00014983,2]
[337205620,1725499869903,-151.0,0.00014983,2]
[337205621,1725499869913,-357.382535,0.00014983,2]
[337205622,1725499869922,-357.382535,0.00014983,2]
[337205623,1725499869931,-413.42,0.00014983,2]
[337205624,1725499869940,-500.0,0.00014983,2]
[337205625,1725499869950,-838.18,0.00014983,2]
[337205626,1725499869959,-838.18,0.00014983,2]
[337205627,1725499869971,-500.0,0.00014983,2]
[337205628,1725499869980,-151.0,0.00014983,2]
[337205629,1725499869989,-500.0,0.00014983,2]
[337205630,1725499869999,-151.0,0.00014983,2]
[337205631,1725499870007,-163.541972,0.00014983,2]
[337205632,1725499870017,-961.501084,0.00014983,2]
[337205633,1725499870026,-961.501084,0.00014983,2]
[337205634,1725499870035,-324.549997,0.00014983,2]
[337205635,1725499870046,-851.81,0.00014983,2]
[337205636,1725499870056,-1287.92,0.00014983,2]
[337205637,1725499870067,-1287.92,0.00014983,2]
[337205638,1725499870076,-324.549997,0.00014983,2]
[337205639,1725499870085,-171.763337,0.00014983,2]
[337205640,1725499870094,-151.0,0.00014983,2]
[337205641,1725499870104,-500.0,0.00014983,2]
[337205642,1725499870113,-171.763337,0.00014983,2]
[337205643,1725499870123,-500.0,0.00014983,2]
[337205644,1725499870132,-500.0,0.00014983,2]
[337205645,1725499870143,-500.0,0.00014983,2]
[337205646,1725499870153,-500.0,0.00014983,2]
[337205647,1725499870162,-1915.76,0.00014983,2]
[337205648,1725499870172,-2974.77,0.00014983,2]
[337205649,1725499870181,-151.0,0.00014983,2]
[337205650,1725499870190,-1003.28,0.00014983,2]
[337205651,1725499870199,-1003.28,0.00014983,2]
[337205652,1725499870209,-203.367203,0.00014983,2]
[337205653,1725499870219,-2944.76,0.00014983,2]
[337205654,1725499870228,-151.0,0.00014983,2]
[337205655,1725499870237,-500.0,0.00014983,2]
[337205656,1725499870247,-203.367203,0.00014983,2]
[337205657,1725499870256,-151.0,0.00014983,2]
[337205658,1725499870266,-162.853998,0.00014983,2]
[337205659,1725499870276,-224.114508,0.00014983,2]
[337205660,1725499870285,-162.853998,0.00014983,2]
[337205661,1725499870295,-224.114508,0.00014983,2]
[337205662,1725499870304,-1491.94,0.00014983,2]
[337205663,1725499870313,-663.021085,0.00014983,2]
[337205664,1725499870323,-151.0,0.00014983,2]
[337205665,1725499870332,-663.021085,0.00014983,2]
[337205666,1725499870342,-500.0,0.00014983,2]
[337205667,1725499870351,-156.78092109,0.00014983,2]
[337205668,1725499870364,-1400.06,0.00014983,2]
[337205669,1725499870374,-151.0,0.00014983,2]
[337205670,1725499870384,-934.659004,0.00014983,2]
[337205671,1725499870394,-934.659004,0.00014983,2]
[337205672,1725499870404,-151.0,0.00014983,2]
[337205673,1725499870413,-151.0,0.00014983,2]
[337205674,1725499870423,-151.0,0.00014983,2]
[337205675,1725499870433,-155.641953,0.00014983,2]
[337205676,1725499870442,-327.711551,0.00014983,2]
[337205677,1725499870452,-327.711551,0.00014983,2]
[337205678,1725499870461,-500.0,0.00014983,2]
[337205679,1725499870471,-500.0,0.00014983,2]
[337205680,1725499870480,-500.0,0.00014983,2]
[337205681,1725499870490,-370.779484,0.00014983,2]
[337205682,1725499870499,-258.26957532,0.00014983,2]
[337205683,1725499870509,-370.779484,0.00014983,2]
[337205684,1725499870519,-500.0,0.00014983,2]
[337205685,1725499870528,-500.0,0.00014983,2]
[337205686,1725499870538,-151.0,0.00014983,2]
[337205687,1725499870548,-230.73543,0.00014983,2]
[337205688,1725499870558,-151.0,0.00014983,2]
[337205689,1725499870568,-1095.43,0.00014983,2]
[337205690,1725499870578,-230.73543,0.00014983,2]
[337205691,1725499870587,-500.0,0.00014983,2]
[337205692,1725499870597,-1344.35,0.00014983,2]
[337205693,1725499870607,-151.0,0.00014983,2]
[337205694,1725499870617,-879.59,0.00014983,2]
[337205695,1725499870626,-1331.6,0.00014983,2]
[337205696,1725499870636,-500.0,0.00014983,2]
[337205697,1725499870646,-500.0,0.00014983,2]
[337205698,1725499870656,-151.0,0.00014983,2]
[337205699,1725499870665,-151.0,0.00014983,2]
[337205700,1725499870675,-500.0,0.00014983,2]
[337205701,1725499870684,-1832.572372,0.00014983,2]
[337205702,1725499870693,-500.0,0.00014983,2]
[337205703,1725499870703,-1832.572372,0.00014983,2]
[337205704,1725499870712,-500.0,0.00014983,2]
[337205705,1725499870721,-760.89,0.00014983,2]
[337205706,1725499870731,-151.0,0.00014983,2]
[337205707,1725499870740,-151.0,0.00014983,2]
[337205708,1725499870749,-1832.572372,0.00014983,2]
[337205709,1725499870758,-1832.572372,0.00014983,2]
[337205710,1725499870768,-500.0,0.00014983,2]
[337205711,1725499870777,-500.0,0.00014983,2]
[337205712,1725499870787,-500.0,0.00014983,2]
[337205713,1725499870796,-500.0,0.00014983,2]
[337205714,1725499870805,-500.0,0.00014983,2]
[337205715,1725499870815,-151.0,0.00014983,2]
[337205716,1725499870824,-151.0,0.00014983,2]
[337205717,1725499870834,-500.0,0.00014983,2]
[337205718,1725499870843,-2543.27,0.00014983,2]
[337205719,1725499870852,-346.061427,0.00014983,2]
[337205720,1725499870861,-346.061427,0.00014983,2]
[337205721,1725499870870,-151.0,0.00014983,2]
[337205722,1725499870880,-151.0,0.00014983,2]
[337205723,1725499870889,-346.061427,0.00014983,2]
[337205724,1725499870900,-346.061427,0.00014983,2]
[337205725,1725499870913,-3678.48,0.00014983,2]
[337205726,1725499870924,-160.309653,0.00014983,2]
[337205727,1725499870935,-2261.89,0.00014983,2]
[337205728,1725499870944,-543.44,0.00014983,2]
[337205729,1725499870955,-543.44,0.00014983,2]
[337205730,1725499870967,-151.0,0.00014983,2]
[337205731,1725499870978,-151.0,0.00014983,2]
[337205732,1725499870987,-500.0,0.00014983,2]
[337205733,1725499870997,-2557.95,0.00014983,2]
[337205734,1725499871008,-2557.95,0.00014983,2]
[337205735,1725499871017,-1335.99,0.00014983,2]
[337205736,1725499871028,-500.0,0.00014983,2]
[337205737,1725499871037,-500.0,0.00014983,2]
[337205738,1725499871047,-575.4,0.00014983,2]
[337205739,1725499871057,-575.4,0.00014983,2]
[337205740,1725499871067,-500.0,0.00014983,2]
[337205741,1725499871077,-500.0,0.00014983,2]
[337205742,1725499871087,-500.0,0.00014983,2]
[337205743,1725499871096,-151.0,0.00014983,2]
[337205744,1725499871106,-151.0,0.00014983,2]
[337205745,1725499871115,-212.713621,0.00014983,2]
[337205746,1725499871126,-212.713621,0.00014983,2]
[337205747,1725499871137,-212.713621,0.00014983,2]
[337205748,1725499871147,-212.713621,0.00014983,2]
[337205749,1725499871157,-357.864108,0.00014983,2]
[337205750,1725499871166,-357.864108,0.00014983,2]
[337205751,1725499871176,-231.934886,0.00014983,2]
[337205752,1725499871185,-231.934886,0.00014983,2]
[337205753,1725499871194,-357.864108,0.00014983,2]
[337205754,1725499871203,-357.864108,0.00014983,2]
[337205755,1725499871213,-231.934886,0.00014983,2]
[337205756,1725499871222,-231.934886,0.00014983,2]
[337205757,1725499871231,-151.0,0.00014983,2]
[337205758,1725499871240,-355.451856,0.00014983,2]
[337205759,1725499871250,-151.0,0.00014983,2]
[337205760,1725499871260,-355.451856,0.00014983,2]
[337205761,1725499871269,-355.451856,0.00014983,2]
[337205762,1725499871278,-355.451856,0.00014983,2]
[337205763,1725499871287,-241.426485,0.00014983,2]
[337205764,1725499871296,-241.426485,0.00014983,2]
[337205765,1725499871306,-241.426485,0.00014983,2]
[337205766,1725499871315,-241.426485,0.00014983,2]
[337205767,1725499871326,-318.499121,0.00014983,2]
[337205768,1725499871335,-318.499121,0.00014983,2]
[337205769,1725499871344,-318.499121,0.00014983,2]
[337205770,1725499871354,-318.499121,0.00014983,2]
[337205771,1725499871367,-151.0,0.00014983,2]
[337205772,1725499871377,-151.0,0.00014983,2]
[337205773,1725499871388,-500.0,0.00014983,2]
[337205774,1725499871398,-500.0,0.00014983,2]
[337205775,1725499871406,-151.0,0.00014983,2]
[337205776,1725499871415,-151.0,0.00014983,2]
[337205777,1725499871424,-286.0,0.00014983,2]
[337205778,1725499871433,-500.0,0.00014983,2]
[337205779,1725499871442,-199.077694,0.00014983,2]
[337205780,1725499871452,-199.077694,0.00014983,2]
[337205781,1725499871463,-234.534679,0.00014983,2]
[337205782,1725499871472,-234.534679,0.00014983,2]
[337205783,1725499871483,-151.0,0.00014983,2]
[337205784,1725499871493,-151.0,0.00014983,2]
[337205785,1725499871502,-199.077694,0.00014983,2]
[337205786,1725499871511,-199.077694,0.00014983,2]
[337205787,1725499871522,-234.534679,0.00014983,2]
[337205788,1725499871532,-234.534679,0.00014983,2]
[337205789,1725499871542,-246.38324,0.00014983,2]
[337205790,1725499871551,-246.38324,0.00014983,2]
[337205791,1725499871561,-151.0,0.00014983,2]
[337205792,1725499871570,-151.0,0.00014983,2]
[337205793,1725499871581,-246.38324,0.00014983,2]
[337205794,1725499871590,-246.38324,0.00014983,2]
[337205795,1725499871600,-500.0,0.00014983,2]
[337205796,1725499871611,-500.0,0.00014983,2]
[337205797,1725499871621,-152.338488,0.00014983,2]
[337205798,1725499871631,-500.0,0.00014983,2]
[337205799,1725499871641,-500.0,0.00014983,2]
[337205800,1725499871772,-500.0,0.00014983,2]
[337205801,1725499871782,-500.0,0.00014983,2]
[337205802,1725499871791,-500.0,0.00014983,2]
[337205803,1725499871805,-500.0,0.00014983,2]
[337205804,1725499871815,-151.0,0.00014983,2]
[337205805,1725499871824,-151.0,0.00014983,2]
[337205806,1725499871834,-694.89,0.00014983,2]
[337205807,1725499871844,-151.0,0.00014983,2]
[337205808,1725499871855,-694.89,0.00014983,2]
[337205809,1725499871867,-151.0,0.00014983,2]
[337205810,1725499871877,-500.0,0.00014983,2]
[337205811,1725499871887,-500.0,0.00014983,2]
[337205812,1725499871896,-310.34380067,0.00014983,2]
[337205813,1725499871906,-236.737176,0.00014983,2]
[337205814,1725499871916,-236.737176,0.00014983,2]
[337205815,1725499871925,-1165.999936,0.00014983,2]
[337205816,1725499871935,-1165.999936,0.00014983,2]
[337205817,1725499871944,-236.737176,0.00014983,2]
[337205818,1725499871953,-236.737176,0.00014983,2]
[337205819,1725499871963,-1165.999936,0.00014983,2]
[337205820,1725499871973,-1165.999936,0.00014983,2]
[337205821,1725499871982,-4837.029733,0.00014983,2]
[337205822,1725499871992,-4837.029733,0.00014983,2]
[337205823,1725499872001,-500.0,0.00014983,2]
[337205824,1725499872010,-500.0,0.00014983,2]
[337205825,1725499872020,-260.457054,0.00014983,2]
[337205826,1725499872029,-260.457054,0.00014983,2]
[337205827,1725499872038,-756.23,0.00014983,2]
[337205828,1725499872047,-756.23,0.00014983,2]
[337205829,1725499872057,-756.23,0.00014983,2]
[337205830,1725499872066,-178.955583,0.00014983,2]
[337205831,1725499872075,-151.0,0.00014983,2]
[337205832,1725499872085,-178.955583,0.00014983,2]
[337205833,1725499872094,-151.0,0.00014983,2]
[337205834,1725499872103,-798.474883,0.00014983,2]
[337205835,1725499872113,-798.474883,0.00014983,2]
[337205836,1725499872122,-798.474883,0.00014983,2]
[337205837,1725499872132,-798.474883,0.00014983,2]
[337205838,1725499872141,-699.983479,0.00014983,2]
[337205839,1725499872151,-699.983479,0.00014983,2]
[337205840,1725499872160,-151.0,0.00014983,2]
[337205841,1725499872170,-151.0,0.00014983,2]
[337205842,1725499872179,-1109.48,0.00014983,2]
[337205843,1725499872188,-119790.11043479,0.00014984,2]
[337205844,1725499872197,-500.0,0.00014984,2]
[337205845,1725499872207,-500.0,0.00014984,2]
[337205846,1725499872216,-680.59,0.00014984,2]
[337205847,1725499872225,-500.0,0.00014984,2]
[337205848,1725499872234,-500.0,0.00014984,2]
[337205849,1725499872243,-500.0,0.00014984,2]
[337205850,1725499872252,-724.58,0.00014984,2]
[337205851,1725499872262,-500.0,0.00014984,2]
[337205852,1725499872271,-500.0,0.00014984,2]
[337205853,1725499872280,-500.0,0.00014984,2]
[337205854,1725499872289,-500.0,0.00014984,2]
[337205855,1725499872299,-500.0,0.00014984,2]
[337205856,1725499872308,-560.47,0.00014984,2]
[337205857,1725499872317,-862.25,0.00014984,2]
[337205858,1725499872326,-500.0,0.00014984,2]
[337205859,1725499872335,-500.0,0.00014984,2]
[337205860,1725499872344,-500.0,0.00014984,2]
[337205861,1725499872354,-1135.77,0.00014984,2]
[337205862,1725499872366,-796.33,0.00014984,2]
[337205863,1725499872375,-500.0,0.00014984,2]
[337205864,1725499872385,-500.0,0.00014984,2]
[337205865,1725499872394,-540.37,0.00014984,2]
[337205866,1725499872403,-500.0,0.00014984,2]
[337205867,1725499872413,-1209.33,0.00014984,2]
[337205868,1725499872422,-1296.22,0.00014984,2]
[337205869,1725499872432,-512.3724162,0.00014984,2]
[337205870,1725499872443,-500.0,0.00014984,2]
[337205871,1725499872453,-824.74,0.00014984,2]
[337205872,1725499872462,-2588.45,0.00014984,2]
[337205873,1725499872472,-500.0,0.00014984,2]
[337205874,1725499872481,-1754.73,0.00014984,2]
[337205875,1725499872490,-500.0,0.00014984,2]
[337205876,1725499872500,-670.76,0.00014984,2]
[337205877,1725499872509,-500.0,0.00014984,2]
[337205878,1725499872519,-500.0,0.00014984,2]
[337205879,1725499872529,-2441.83,0.00014984,2]
[337205880,1725499872539,-623.79613097,0.00014984,2]
[337205881,1725499872548,-1492.0,0.00014984,2]
[337205882,1725499872557,-500.0,0.00014984,2]
[337205883,1725499872567,-1641.56,0.00014984,2]
[337205884,1725499872576,-1674.36,0.00014984,2]
[337205885,1725499872586,-1419.74,0.00014984,2]
[337205886,1725499872595,-2457.97,0.00014984,2]
[337205887,1725499872604,-1836.67,0.00014984,2]
[337205888,1725499872613,-1212.37,0.00014984,2]
[337205889,1725499872623,-3191.96,0.00014984,2]
[337205890,1725499872632,-500.0,0.00014984,2]
[337205891,1725499872642,-1292.83,0.00014984,2]
[337205892,1725499872651,-1414.9,0.00014984,2]
[337205893,1725499872661,-532.82,0.00014984,2]
[337205894,1725499872670,-654.56,0.00014984,2]
[337205895,1725499872680,-1296.77,0.00014984,2]
[337205896,1725499872689,-672.03,0.00014984,2]
[337205897,1725499872699,-1718.87,0.00014984,2]
[337205898,1725499872709,-500.0,0.00014984,2]
[337205899,1725499872718,-2242.12,0.00014984,2]
[337205900,1725499872727,-617.04783017,0.00014984,2]
[337205901,1725499872738,-189.8437924,0.00014984,2]
[337205902,1725499872747,-1689.95,0.00014984,2]
[337205903,1725499872756,-500.0,0.00014984,2]
[337205904,1725499872765,-1449.38,0.00014984,2]
[337205905,1725499872774,-500.0,0.00014984,2]
[337205906,1725499872783,-2505.47,0.00014984,2]
[337205907,1725499872793,-500.0,0.00014984,2]
[337205908,1725499872802,-598.92,0.00014984,2]
[337205909,1725499872812,-1250.86,0.00014984,2]
[337205910,1725499872821,-582.22,0.00014984,2]
[337205911,1725499872831,-1263.54,0.00014984,2]
[337205912,1725499872840,-1131.93,0.00014984,2]
[337205913,1725499872850,-661.23,0.00014984,2]
[337205914,1725499872860,-1844.16,0.00014984,2]
[337205915,1725499872871,-1585.55,0.00014984,2]
[337205916,1725499872883,-526.8,0.00014984,2]
[337205917,1725499872894,-1536.8,0.00014984,2]
[337205918,1725499872903,-500.0,0.00014984,2]
[337205919,1725499872913,-553.13,0.00014984,2]
[337205920,1725499872923,-2011.23,0.00014984,2]
[337205921,1725499872932,-848.09,0.00014984,2]
[337205922,1725499872941,-500.0,0.00014984,2]
[337205923,1725499872951,-500.0,0.00014984,2]
[337205924,1725499872960,-785.27,0.00014984,2]
[337205925,1725499872970,-500.0,0.00014984,2]
[337205926,1725499872979,-609.57,0.00014984,2]
[337205927,1725499872988,-1748.6,0.00014984,2]
[337205928,1725499872998,-500.0,0.00014984,2]
[337205929,1725499873007,-558.3,0.00014984,2]
[337205930,1725499873017,-753.04,0.00014984,2]
[337205931,1725499873027,-1555.38,0.00014984,2]
[337205932,1725499873037,-500.0,0.00014984,2]
[337205933,1725499873047,-500.0,0.00014984,2]
[337205934,1725499873057,-892.82,0.00014984,2]
[337205935,1725499873067,-1507.87,0.00014984,2]
[337205936,1725499873077,-830.42,0.00014984,2]
[337205937,1725499873087,-640.4,0.00014984,2]
[337205938,1725499873098,-500.0,0.00014984,2]
[337205939,1725499873107,-513.32,0.00014984,2]
[337205940,1725499873117,-2307.61,0.00014984,2]
[337205941,1725499873127,-2107.48,0.00014984,2]
[337205942,1725499873137,-500.0,0.00014984,2]
[337205943,1725499873149,-1445.89,0.00014984,2]
[337205944,1725499873158,-1677.59,0.00014984,2]
[337205945,1725499873168,-880.76,0.00014984,2]
[337205946,1725499873178,-388.87020764,0.00014984,2]
[337205947,1725499873188,-500.0,0.00014984,2]
[337205948,1725499873198,-500.0,0.00014984,2]
[337205949,1725499873208,-659.92,0.00014984,2]
[337205950,1725499873218,-510.56,0.00014984,2]
[337205951,1725499873228,-1608.34,0.00014984,2]
[337205952,1725499873239,-722.78,0.00014984,2]
[337205953,1725499873249,-500.0,0.00014984,2]
[337205954,1725499873258,-500.0,0.00014984,2]
[337205955,1725499873268,-1116.52,0.00014984,2]
[337205956,1725499873278,-500.0,0.00014984,2]
[337205957,1725499873288,-1036.2,0.00014984,2]
[337205958,1725499873298,-1724.96,0.00014984,2]
[337205959,1725499873308,-500.0,0.00014984,2]
[337205960,1725499873318,-1231.11,0.00014984,2]
[337205961,1725499873327,-2259.1,0.00014984,2]
[337205962,1725499873336,-2259.1,0.00014984,2]
[337205963,1725499873346,-2259.1,0.00014984,2]
[337205964,1725499873358,-2259.1,0.00014984,2]
[337205965,1725499873368,-2259.19983653,0.00014984,2]
[337205966,1725499873379,-1176.37,0.00014984,2]
[337205967,1725499873388,-500.0,0.00014984,2]
[337205968,1725499873399,-257.05093414,0.00014984,2]
[337205969,1725499873410,-521.82,0.00014984,2]
[337205970,1725499873420,-1706.96,0.00014984,2]
[337205971,1725499873430,-1706.96,0.00014984,2]
[337205972,1725499873440,-1706.96,0.00014984,2]
[337205973,1725499873450,-1706.96,0.00014984,2]
[337205974,1725499873460,-1707.06348546,0.00014984,2]
[337205975,1725499873471,-587.08,0.00014984,2]
[337205976,1725499873480,-1245.59,0.00014984,2]
[337205977,1725499873490,-1245.59,0.00014984,2]
[337205978,1725499873500,-1245.59,0.00014984,2]
[337205979,1725499873510,-1245.59,0.00014984,2]
[337205980,1725499873520,-1245.72399607,0.00014984,2]
[337205981,1725499873530,-1590.51,0.00014984,2]
[337205982,1725499873540,-4760.98,0.00014984,2]
[337205983,1725499873549,-4760.98,0.00014984,2]
[337205984,1725499873559,-4760.98,0.00014984,2]
[337205985,1725499873569,-4760.98,0.00014984,2]
[337205986,1725499873578,-4760.99971878,0.00014984,2]
[337205987,1725499873588,-1462.93,0.00014984,2]
[337205988,1725499873598,-1240.3,0.00014984,2]
[337205989,1725499873608,-1240.3,0.00014984,2]
[337205990,1725499873618,-1240.3,0.00014984,2]
[337205991,1725499873628,-1240.3,0.00014984,2]
[337205992,1725499873638,-1240.50995951,0.00014984,2]
[337205993,1725499873648,-5884.3,0.00014984,2]
[337205994,1725499873658,-5884.3,0.00014984,2]
[337205995,1725499873668,-5884.3,0.00014984,2]
[337205996,1725499873677,-5884.3,0.00014984,2]
[337205997,1725499873688,-5884.44061929,0.00014984,2]
[337205998,1725499873698,-2866.35,0.00014984,2]
[337205999,1725499873707,-2866.35,0.00014984,2]
[337206000,1725499873716,-2866.35,0.00014984,2]
[337206001,1725499873726,-2866.35,0.00014984,2]
[337206002,1725499873735,-2866.49083811,0.00014984,2]
[337206003,1725499873745,-654.17,0.00014984,2]
[337206004,1725499873754,-693.65,0.00014984,2]
[337206005,1725499873763,-693.65,0.00014984,2]
[337206006,1725499873773,-693.65,0.00014984,2]
[337206007,1725499873782,-693.65,0.00014984,2]
[337206008,1725499873791,-693.83894943,0.00014984,2]
[337206009,1725499873801,-1611.08,0.00014984,2]
[337206010,1725499873810,-521.8328344,0.00014984,2]
[337206011,1725499873819,-908.28,0.00014984,2]
[337206012,1725499873830,-908.28,0.00014984,2]
[337206013,1725499873840,-908.28,0.00014984,2]
[337206014,1725499873849,-908.28,0.00014984,2]
[337206015,1725499873859,-908.31540747,0.00014984,2]
[337206016,1725499873869,-657.2,0.00014984,2]
[337206017,1725499873881,-657.2,0.00014984,2]
[337206018,1725499873892,-657.2,0.00014984,2]
[337206019,1725499873904,-657.2,0.00014984,2]
[337206020,1725499873914,-657.38793339,0.00014984,2]
[337206021,1725499873923,-500.0,0.00014984,2]
[337206022,1725499873935,-774.08,0.00014984,2]
[337206023,1725499873947,-510.9,0.00014984,2]
[337206024,1725499873958,-774.08,0.00014984,2]
[337206025,1725499873967,-510.9,0.00014984,2]
[337206026,1725499873978,-774.08,0.00014984,2]
[337206027,1725499873989,-510.9,0.00014984,2]
[337206028,1725499874278,-774.08,0.00014984,2]
[337206029,1725499874302,-774.24128187,0.00014984,2]
[337206030,1725499874312,-510.9,0.00014984,2]
[337206031,1725499874322,-510.95232132,0.00014984,2]
[337206032,1725499874332,-500.0,0.00014984,2]
[337206033,1725499874342,-500.0,0.00014984,2]
[337206034,1725499874352,-568.98,0.00014984,2]
[337206035,1725499874365,-555.39,0.00014984,2]
[337206036,1725499874375,-568.98,0.00014984,2]
[337206037,1725499874385,-568.98,0.00014984,2]
[337206038,1725499874395,-568.98,0.00014984,2]
[337206039,1725499874407,-569.0232652,0.00014984,2]
[337206040,1725499874417,-555.39,0.00014984,2]
[337206041,1725499874428,-555.39,0.00014984,2]
[337206042,1725499874439,-555.39,0.00014984,2]
[337206043,1725499874449,-555.50850188,0.00014984,2]
[337206044,1725499874459,-824.43,0.00014984,2]
[337206045,1725499874469,-824.43,0.00014984,2]
[337206046,1725499874479,-511.4,0.00014984,2]
[337206047,1725499874490,-824.43,0.00014984,2]
[337206048,1725499874500,-511.4,0.00014984,2]
[337206049,1725499874509,-824.43,0.00014984,2]
[337206050,1725499874519,-824.44,0.00014984,2]
[337206051,1725499874528,-511.4,0.00014984,2]
[337206052,1725499874538,-511.4,0.00014984,2]
[337206053,1725499874548,-511.63899046,0.00014984,2]
[337206054,1725499874558,-1175.31,0.00014984,2]
[337206055,1725499874568,-500.0,0.00014984,2]
[337206056,1725499874578,-500.0,0.00014984,2]
[337206057,1725499874587,-800.51,0.00014984,2]
[337206058,1725499874597,-800.51,0.00014984,2]
[337206059,1725499874607,-800.51,0.00014984,2]
[337206060,1725499874617,-800.51,0.00014984,2]
[337206061,1725499874626,-568.99,0.00014984,2]
[337206062,1725499874635,-800.58835765,0.00014984,2]
[337206063,1725499874647,-568.99,0.00014984,2]
[337206064,1725499874657,-568.99,0.00014984,2]
[337206065,1725499874667,-510.09,0.00014984,2]
[337206066,1725499874676,-568.99,0.00014984,2]
[337206067,1725499874686,-569.00094675,0.00014984,2]
[337206068,1725499874696,-500.0,0.00014984,2]
[337206069,1725499874706,-500.0,0.00014984,2]
[337206070,1725499874716,-500.0,0.00014984,2]
[337206071,1725499874726,-443.27567193,0.00014984,2]
[337206072,1725499874736,-500.0,0.00014984,2]
[337206073,1725499874746,-833.02,0.00014984,2]
[337206074,1725499874756,-833.02,0.00014984,2]
[337206075,1725499874765,-833.02,0.00014984,2]
[337206076,1725499874775,-833.02,0.00014984,2]
[337206077,1725499874784,-833.14346374,0.00014984,2]
[337206078,1725499874794,-616.93,0.00014984,2]
[337206079,1725499874804,-616.93,0.00014984,2]
[337206080,1725499874814,-616.93,0.00014984,2]
[337206081,1725499874824,-616.93,0.00014984,2]
[337206082,1725499874835,-616.96548417,0.00014984,2]
[337206083,1725499874846,-1639.06,0.00014984,2]
[337206084,1725499874855,-1639.06,0.00014984,2]
[337206085,1725499874865,-1639.06,0.00014984,2]
[337206086,1725499874874,-1639.06,0.00014984,2]
[337206087,1725499874884,-1639.11731548,0.00014984,2]
[337206088,1725499874894,-662.66,0.00014984,2]
[337206089,1725499874904,-662.66,0.00014984,2]
[337206090,1725499874914,-662.66,0.00014984,2]
[337206091,1725499874923,-662.66,0.00014984,2]
[337206092,1725499874935,-662.66842079,0.00014984,2]
[337206093,1725499874946,-568.62,0.00014984,2]
[337206094,1725499874956,-568.62,0.00014984,2]
[337206095,1725499874966,-568.62,0.00014984,2]
[337206096,1725499874977,-568.62,0.00014984,2]
[337206097,1725499874988,-568.69729541,0.00014984,2]
[337206098,1725499874998,-500.0,0.00014984,2]
[337206099,1725499875008,-500.0,0.00014984,2]
[337206100,1725499875018,-500.0,0.00014984,2]
[337206101,1725499875027,-500.0,0.00014984,2]
[337206102,1725499875037,-500.0,0.00014984,2]
[337206103,1725499875048,-500.0,0.00014984,2]
[337206104,1725499875058,-522.33,0.00014984,2]
[337206105,1725499875067,-151.0,0.00014984,2]
[337206106,1725499875077,-500.0,0.00014984,2]
[337206107,1725499875086,-500.0,0.00014984,2]
[337206108,1725499875096,-500.0,0.00014984,2]
[337206109,1725499875106,-500.0,0.00014984,2]
[337206110,1725499875116,-500.0,0.00014984,2]
[337206111,1725499875125,-503.4317506,0.00014984,2]
[337206112,1725499875135,-500.0,0.00014984,2]
[337206113,1725499875144,-500.0,0.00014984,2]
[337206114,1725499875155,-1862.57,0.00014984,2]
[337206115,1725499875165,-500.0,0.00014984,2]